bitfinex/quotes_ETHUSD_20240601
["timestamp","ask_amount","ask_price","bid_price","bid_amount"]
[1717277921255,0.05,3821.0,3820.9,0.03181012]
[1717277921461,0.316703,3821.0,3820.0,4.30573]
[1717277921668,0.05,3821.0,3820.0,2.61773]
[1717277921873,2.66716,3821.0,3820.1,0.031872]
[1717277922281,2.4688,3820.9,3819.6,2.61805]
[1717277922462,2.4688,3820.9,3820.2,0.03186427]
[1717277922661,2.4688,3820.9,3819.8,1.688]
[1717277922862,2.4688,3820.9,3820.3,0.03185653]
[1717277923162,2.4688,3820.9,3820.4,0.03184879]
[1717277923356,0.513596,3820.8,3819.8,1.688]
[1717277923583,2.66716,3821.0,3820.0,2.61776]
[1717277923864,2.66716,3821.0,3820.1,0.031872]
[1717277925393,2.66716,3821.0,3820.2,0.03186427]
[1717277925717,2.66716,3821.0,3819.9,2.61786]
[1717277925850,2.66716,3821.0,3820.3,0.03185653]
[1717277925851,2.933876,3821.0,3820.3,0.03185653]
[1717277926178,2.933876,3821.0,3820.4,0.03184879]
[1717277926371,2.933876,3821.0,3820.0,0.55]
[1717277926683,2.933876,3821.0,3820.1,0.031872]
[1717277926882,0.2933876,3820.9,3820.1,0.031872]
[1717277930998,2.61733,3820.7,3820.1,0.031872]
[1717277931295,2.61733,3820.7,3819.8,1.688]
[1717277931499,2.61733,3820.7,3820.2,0.03009662]
[1717277931700,2.61733,3820.7,3819.8,1.688]
[1717277931865,2.61733,3820.7,3820.3,0.03008888]
[1717277932197,2.61733,3820.7,3820.4,0.03008114]
[1717277932379,2.61733,3820.7,3819.8,4.30588]
[1717277932582,2.61733,3820.7,3819.9,0.03011983]
[1717277932781,2.61733,3820.7,3819.9,0.58011983]
[1717277932980,2.61733,3820.7,3819.9,1.06871981]
[1717277935717,0.05,3821.0,3820.2,1.688]
[1717277935886,0.05,3821.0,3820.3,0.55]
[1717277936409,0.05,3821.0,3820.4,0.0300031]
[1717277941719,2.61719,3820.9,3820.4,0.0300031]
[1717277942894,2.883909,3820.9,3820.4,0.0300031]
[1717277943310,2.883909,3820.9,3820.2,1.688]
[1717277943506,2.883909,3820.9,3820.5,0.02990316]
[1717277943683,2.883909,3820.9,3820.2,1.688]
[1717277943886,2.883909,3820.9,3820.6,0.02989543]
[1717277944088,2.883909,3820.9,3820.2,1.688]
[1717277944324,2.883909,3820.9,3820.7,0.0298877]
[1717277944618,2.883909,3820.9,3820.8,0.02987996]
[1717277944788,2.61742,3820.6,3819.6,2.61803]
[1717277945118,2.61742,3820.6,3819.7,0.02996506]
[1717277945119,2.61761,3820.3,3819.7,0.02996506]
[1717277945509,2.61761,3820.3,3819.6,1.688]
[1717277945698,2.61761,3820.3,3819.8,0.02995732]
[1717277946028,3.121071,3820.3,3819.9,0.02994958]
[1717277946318,3.121071,3820.3,3819.6,1.688]
[1717277946515,3.121071,3820.3,3820.0,0.02994185]
[1717277946718,3.121071,3820.3,3819.6,1.688]
[1717277947219,2.61783,3820.0,3819.7,0.02996506]
[1717277947986,2.61783,3820.0,3819.2,1.688]
[1717277948324,2.61783,3820.0,3819.3,0.02999602]
[1717277949588,2.9299591,3820.0,3819.3,0.02999602]
[1717277949921,2.9299591,3820.0,3819.0,1.688]
[1717277949922,2.61805,3819.7,3819.0,1.688]
[1717277950291,2.61805,3819.7,3819.1,0.0300115]
[1717277952334,2.61805,3819.7,3818.9,1.688]
[1717277952517,2.61805,3819.7,3819.2,0.03022856]
[1717277952693,2.61815,3819.5,3818.8,1.688]
[1717277953098,2.61815,3819.5,3818.9,0.03025178]
[1717277955023,2.61815,3819.5,3818.8,1.688]
[1717277955230,2.61815,3819.5,3818.9,0.03025178]
[1717277957205,2.61815,3819.5,3818.6,1.688]
[1717277957410,2.61815,3819.5,3818.7,0.03055453]
[1717277961635,2.61815,3819.5,3819.3,0.704]
[1717277967635,2.61815,3819.5,3819.4,0.03067526]
[1717277967939,2.61815,3819.5,3819.3,0.704]
[1717277968323,2.61815,3819.5,3819.4,0.03067526]
[1717277968759,2.61815,3819.5,3819.3,0.704]
[1717277969051,2.61815,3819.5,3819.4,0.03067526]
[1717277969245,2.61815,3819.5,3819.3,0.704]
[1717277969446,2.61815,3819.5,3819.4,0.03067526]
[1717277969740,2.61815,3819.5,3819.3,0.704]
[1717277974651,2.61815,3819.5,3818.6,2.6187]
[1717277974958,2.61815,3819.5,3819.4,0.704]
[1717277975550,2.61815,3819.5,3818.7,0.26187]
[1717277975754,2.61815,3819.5,3819.4,0.704]
[1717277977570,2.61815,3819.5,3818.7,0.26187]
[1717277977743,2.61815,3819.5,3819.3,0.704]
[1717277981572,2.61815,3819.5,3818.3,5.01325]
[1717277981865,2.61815,3819.5,3819.3,0.704]
[1717277984175,2.61836,3819.2,3818.4,1.37963134]
[1717277984464,2.61836,3819.2,3819.1,0.704]
[1717277984632,2.61836,3819.2,3819.1,0.73473284]
[1717278000292,2.61836,3819.2,3819.1,0.03073284]
[1717278000498,2.61854,3819.0,3818.4,1.37963134]
[1717278000836,2.61854,3819.0,3818.5,0.37739313]
[1717278001288,2.61854,3819.0,3818.1,3.0]
[1717278001587,2.61854,3819.0,3818.9,0.704]
[1717278002284,2.61887,3818.5,3818.0,0.28307594]
[1717278002486,2.2955,3819.2,3817.5,2.6195]
[1717278002487,2.61902,3818.3,3817.5,2.6195]
[1717278002687,2.61902,3818.3,3818.2,0.704]
[1717278002878,2.61902,3818.3,3818.2,0.73397795]
[1717278004092,2.61902,3818.3,3818.2,0.02997795]
[1717278004093,4.91452,3818.3,3818.2,0.02997795]
[1717278004401,5.405972,3818.3,3818.2,0.73397795]
[1717278004582,5.405972,3818.3,3818.2,0.704]
[1717278005286,3.110472,3818.3,3818.2,0.704]
[1717278005468,2.61917,3818.0,3817.1,5.07985]
[1717278005670,2.61917,3818.0,3817.9,0.704]
[1717278006373,2.61917,3818.0,3817.2,0.55]
[1717278006584,2.61917,3818.0,3817.9,0.704]
[1717278011668,2.61917,3818.0,3816.9,7.32]
[1717278011669,2.61939,3817.7,3816.9,7.32]
[1717278011877,2.61939,3817.7,3817.6,0.704]
[1717278012084,2.61939,3817.7,3817.6,0.03068945]
[1717278012307,2.61939,3817.7,3817.6,0.704]
[1717278012469,2.61939,3817.7,3817.6,0.73468945]
[1717278013790,2.61939,3817.7,3817.6,0.03068945]
[1717278013992,3.110879,3817.7,3817.6,0.03068945]
[1717278014501,3.110879,3817.7,3817.5,0.704]
[1717278014700,2.61969,3817.3,3816.3,4.94443]
[1717278014903,2.61969,3817.3,3817.2,0.704]
[1717278015201,2.61969,3817.3,3817.2,0.73472044]
[1717278015840,2.61969,3817.3,3816.6,0.02]
[1717278015972,2.61969,3817.3,3817.2,0.704]
[1717278016314,2.61969,3817.3,3817.2,0.73472044]
[1717278016603,2.61969,3817.3,3817.2,0.704]
[1717278019316,2.61969,3817.3,3816.6,0.02]
[1717278019487,2.61969,3817.3,3817.2,0.704]
[1717278020591,2.61969,3817.3,3816.6,0.02]
[1717278020907,2.61969,3817.3,3817.2,0.704]
[1717278023983,2.61969,3817.3,3816.6,0.02]
[1717278024183,2.61969,3817.3,3817.2,0.704]
[1717278026815,2.61969,3817.3,3816.6,0.02]
[1717278027005,2.61969,3817.3,3817.2,0.704]
[1717278028095,2.61969,3817.3,3816.6,0.02]
[1717278028406,2.61969,3817.3,3817.2,0.704]
[1717278031098,3.112879,3817.3,3817.2,0.704]
[1717278032725,3.112879,3817.3,3816.6,0.02]
[1717278032896,2.61969,3817.3,3817.2,0.704]
[1717278033731,2.61969,3817.3,3816.6,0.02]
[1717278033910,2.61969,3817.3,3817.0,0.704]
[1717278034090,2.61969,3817.3,3817.1,0.07814603]
[1717278034299,2.61969,3817.3,3817.0,0.704]
[1717278034493,3.112879,3817.3,3817.1,0.07814603]
[1717278034728,3.112879,3817.3,3817.0,0.704]
[1717278034893,3.112879,3817.3,3817.1,0.07814603]
[1717278035098,3.112879,3817.3,3817.0,0.704]
[1717278035313,3.112879,3817.3,3817.1,0.07814603]
[1717278035511,3.112879,3817.3,3817.0,0.704]
[1717278035707,2.61978,3817.1,3817.0,0.704]
[1717278036109,2.61978,3817.1,3816.6,0.02]
[1717278036639,2.61978,3817.1,3816.9,0.704]
[1717278047146,2.61978,3817.1,3816.0,4.93453]
[1717278047449,2.61978,3817.1,3816.1,0.07827965]
[1717278047651,2.61999,3816.8,3816.7,0.704]
[1717278048032,2.61999,3816.8,3816.7,0.78222571]
[1717278050148,2.93601879,3817.1,3816.7,0.78222571]
[1717278050464,2.61979,3817.1,3817.0,0.704]
[1717278050620,2.91339188,3817.1,3817.0,0.704]
[1717278058173,2.91339188,3817.1,3816.8,0.704]
[1717278059874,2.61979,3817.1,3816.8,0.704]
[1717278060083,2.61979,3817.1,3817.0,0.704]
[1717278060483,2.61979,3817.1,3817.0,0.78261115]
[1717278062158,2.61979,3817.1,3817.0,0.07861115]
[1717278062363,2.61979,3817.1,3816.9,0.704]
[1717278062560,2.61979,3817.1,3817.0,0.07861115]
[1717278062755,2.61979,3817.1,3816.9,0.704]
[1717278062960,2.61979,3817.1,3817.0,0.07861115]
[1717278063171,2.61979,3817.1,3816.9,0.704]
[1717278063375,2.61979,3817.1,3817.0,0.07861115]
[1717278063586,2.61959,3817.4,3816.9,0.704]
[1717278063787,2.61959,3817.4,3817.1,0.704]
[1717278064108,2.61959,3817.4,3817.2,0.07859318]
[1717278065269,2.881549,3817.4,3817.2,0.07859318]
[1717278065474,2.881549,3817.4,3816.9,0.704]
[1717278065666,2.881549,3817.4,3817.3,0.07858419]
[1717278065860,2.881549,3817.4,3816.9,0.704]
[1717278066092,2.61959,3817.4,3817.1,0.704]
[1717278066502,2.61959,3817.4,3817.2,0.07859318]
[1717278066711,2.61959,3817.4,3817.3,0.704]
[1717278068534,2.61959,3817.4,3817.1,0.704]
[1717278068885,2.61959,3817.4,3817.2,0.07855881]
[1717278072001,2.61959,3817.4,3817.3,0.704]
[1717278072408,2.61959,3817.4,3817.1,0.704]
[1717278072708,2.61959,3817.4,3817.2,0.07855881]
[1717278074519,2.61959,3817.4,3817.3,0.704]
[1717278075329,2.61959,3817.4,3817.1,0.704]
[1717278075689,2.61959,3817.4,3817.2,0.07855881]
[1717278076608,2.61959,3817.4,3817.2,0.78255881]
[1717278076778,2.881549,3817.4,3817.2,0.07855881]
[1717278076982,2.61976,3817.2,3817.0,0.704]
[1717278087485,2.6194,3817.7,3817.0,0.704]
[1717278087685,2.6194,3817.7,3817.2,0.704]
[1717278087988,3.43302,3817.7,3817.3,0.07859043]
[1717278088305,3.43302,3817.7,3817.2,0.704]
[1717278088509,3.43302,3817.7,3817.4,0.07858144]
[1717278088713,3.43302,3817.7,3817.3,0.07859043]
[1717278089024,3.43302,3817.7,3817.4,0.07858144]
[1717278089316,3.43302,3817.7,3817.2,0.704]
[1717278089723,3.43302,3817.7,3817.3,0.07859043]
[1717278090078,3.43302,3817.7,3817.2,0.704]
[1717278090305,3.43302,3817.7,3817.4,0.07858144]
[1717278090616,3.43302,3817.7,3817.2,0.704]
[1717278090784,3.43302,3817.7,3817.3,0.07859043]
[1717278090984,3.43302,3817.7,3817.2,0.704]
[1717278091218,3.43302,3817.7,3817.4,0.704]
[1717278091789,3.43302,3817.7,3817.5,0.07857246]
[1717278096630,2.6194,3817.7,3817.5,0.07857246]
[1717278097998,2.6194,3817.7,3817.6,0.704]
[1717278098324,2.6194,3817.7,3817.6,0.78205078]
[1717278104341,2.6194,3817.7,3817.6,0.07805078]
[1717278104715,2.6194,3817.7,3817.4,0.704]
[1717278105075,0.02,3817.9,3817.5,0.07802854]
[1717278105224,0.02,3817.9,3817.8,0.704]
[1717278107012,0.02,3817.9,3817.5,0.704]
[1717278107208,0.02,3817.9,3817.6,0.07801955]
[1717278107533,0.02,3817.9,3817.7,0.704]
[1717278107822,0.02,3817.9,3817.8,0.07800159]
[1717278108038,0.02,3817.9,3817.7,0.704]
[1717278108236,0.02,3817.9,3817.8,0.07800159]
[1717278108415,0.02,3817.9,3817.7,0.704]
[1717278108630,0.02,3817.9,3817.8,0.07800159]
[1717278108810,0.02,3817.9,3817.7,0.704]
[1717278109015,0.02,3817.9,3817.8,0.07800159]
[1717278109216,0.02,3817.9,3817.7,0.704]
[1717278109447,0.02,3817.9,3817.8,0.07800159]
[1717278109926,2.61918,3818.0,3817.7,0.704]
[1717278110466,2.61918,3818.0,3817.8,0.07800159]
[1717278110965,2.61918,3818.0,3817.7,0.704]
[1717278111460,2.61918,3818.0,3817.8,0.07800159]
[1717278111759,2.61918,3818.0,3817.7,0.704]
[1717278112157,2.61918,3818.0,3817.8,0.07800159]
[1717278112338,2.61918,3818.0,3817.7,0.704]
[1717278112526,2.61918,3818.0,3817.8,0.07787349]
[1717278112727,2.61918,3818.0,3817.7,0.704]
[1717278113140,2.61918,3818.0,3817.8,0.07787349]
[1717278113340,2.61918,3818.0,3817.7,0.704]
[1717278113585,2.61918,3818.0,3817.8,0.07787349]
[1717278113728,2.61918,3818.0,3817.7,0.704]
[1717278113929,2.61918,3818.0,3817.8,0.07787349]
[1717278114152,2.61918,3818.0,3817.7,0.704]
[1717278114348,2.61918,3818.0,3817.8,0.07787349]
[1717278114730,2.61918,3818.0,3817.7,0.704]
[1717278114932,2.61918,3818.0,3817.8,0.07787349]
[1717278115144,2.61918,3818.0,3817.7,0.704]
[1717278115374,2.61918,3818.0,3817.8,0.07787349]
[1717278115585,2.61918,3818.0,3817.7,0.704]
[1717278115874,2.61918,3818.0,3817.8,0.07787349]
[1717278116251,2.61918,3818.0,3817.7,0.704]
[1717278116563,2.61918,3818.0,3817.8,0.07787349]
[1717278116760,2.61918,3818.0,3817.7,0.704]
[1717278116964,2.61918,3818.0,3817.8,0.07787349]
[1717278117164,2.61918,3818.0,3817.7,0.704]
[1717278117363,2.61918,3818.0,3817.8,0.07754685]
[1717278117542,2.61918,3818.0,3817.7,0.704]
[1717278117742,2.61918,3818.0,3817.8,0.07754685]
[1717278117938,2.61918,3818.0,3817.7,0.704]
[1717278118149,2.61918,3818.0,3817.8,0.07754685]
[1717278118438,2.61918,3818.0,3817.7,0.704]
[1717278118659,2.61918,3818.0,3817.8,0.07754685]
[1717278118859,3.114918,3818.0,3817.8,0.07754685]
[1717278119150,3.114918,3818.0,3817.7,0.704]
[1717278119352,3.114918,3818.0,3817.8,0.07754685]
[1717278119552,3.114918,3818.0,3817.7,0.704]
[1717278119752,3.114918,3818.0,3817.8,0.07754685]
[1717278119953,3.114918,3818.0,3817.7,0.704]
[1717278120154,3.114918,3818.0,3817.8,0.07754685]
[1717278120477,3.114918,3818.0,3817.7,0.704]
[1717278120866,3.114918,3818.0,3817.8,0.07754685]
[1717278121274,3.114918,3818.0,3817.7,0.704]
[1717278121785,3.114918,3818.0,3817.8,0.07754685]
[1717278121974,3.114918,3818.0,3817.7,0.704]
[1717278122143,2.61918,3818.0,3817.8,0.07754685]
[1717278122338,2.61918,3818.0,3817.7,0.704]
[1717278122542,2.61918,3818.0,3817.8,0.07754685]
[1717278122777,2.61918,3818.0,3817.7,0.704]
[1717278123076,2.61918,3818.0,3817.8,0.07754685]
[1717278123443,2.61918,3818.0,3817.7,0.704]
[1717278123643,2.61918,3818.0,3817.8,0.07754685]
[1717278123846,2.61918,3818.0,3817.7,0.704]
[1717278124289,2.61918,3818.0,3817.8,0.07754685]
[1717278124581,2.61918,3818.0,3817.7,0.704]
[1717278124900,2.61918,3818.0,3817.8,0.07754685]
[1717278125402,2.61918,3818.0,3817.9,0.704]
[1717278128196,2.61898,3818.3,3817.9,0.704]
[1717278128493,2.61898,3818.3,3818.0,0.07752889]
[1717278128868,2.61898,3818.3,3817.9,0.704]
[1717278129091,2.61898,3818.3,3818.1,0.704]
[1717278129465,2.61898,3818.3,3818.2,0.07751093]
[1717278129861,2.61898,3818.3,3818.1,0.704]
[1717278130194,2.61898,3818.3,3818.2,0.07746406]
[1717278130402,2.61898,3818.3,3818.1,0.704]
[1717278130700,2.61898,3818.3,3818.2,0.07746406]
[1717278130999,2.61898,3818.3,3818.1,0.704]
[1717278131197,2.61898,3818.3,3818.2,0.07746406]
[1717278141130,2.61876,3818.6,3818.2,0.07746406]
[1717278141335,2.61876,3818.6,3818.3,0.704]
[1717278144110,2.61876,3818.6,3818.5,0.704]
[1717278145578,2.61856,3818.9,3818.5,0.704]
[1717278145910,2.61856,3818.9,3818.8,0.704]
[1717278148617,2.61856,3818.9,3818.8,0.78087013]
[1717278148805,2.61836,3819.2,3818.8,0.78087013]
[1717278149002,2.61836,3819.2,3818.2,2.61898]
[1717278149003,2.61836,3819.2,3819.0,0.704]
[1717278149594,2.61836,3819.2,3818.6,2.3064]
[1717278149595,2.61836,3819.2,3819.1,0.7808432]
[1717278151392,2.61836,3819.2,3819.1,0.0768432]
[1717278151593,2.61836,3819.2,3818.9,0.704]
[1717278151829,2.61836,3819.2,3819.0,0.07685218]
[1717278152185,2.61836,3819.2,3819.1,0.704]
[1717278152405,2.61836,3819.2,3819.1,0.7808432]
[1717278152611,2.61836,3819.2,3819.1,0.0768432]
[1717278152814,2.61836,3819.2,3818.2,2.3091]
[1717278153125,2.61836,3819.2,3818.9,0.704]
[1717278153420,2.61836,3819.2,3819.0,0.07685218]
[1717278161739,2.61836,3819.2,3819.1,0.704]
[1717278166513,2.61836,3819.2,3819.1,0.7804997]
[1717278171708,2.63807,3819.6,3819.1,0.7804997]
[1717278171924,2.63807,3819.6,3819.4,0.704]
[1717278172306,3.141017,3819.6,3819.5,0.07629208]
[1717278172507,2.63807,3819.6,3819.5,0.07629208]
[1717278172705,2.63807,3819.6,3819.3,0.704]
[1717278173451,2.63807,3819.6,3819.4,0.07630106]
[1717278173806,2.63807,3819.6,3819.3,0.704]
[1717278174219,2.63807,3819.6,3819.4,0.07630106]
[1717278174543,2.63807,3819.6,3819.3,0.704]
[1717278174922,2.63807,3819.6,3819.4,0.07630106]
[1717278175122,2.3664,3819.5,3819.4,0.07630106]
[1717278175330,2.61822,3819.4,3819.1,0.704]
[1717278175723,2.61822,3819.4,3819.2,0.07631901]
[1717278176131,2.61822,3819.4,3819.1,0.704]
[1717278176507,2.61822,3819.4,3819.2,0.07631901]
[1717278177245,2.61822,3819.4,3819.3,0.704]
[1717278180653,0.02,3819.6,3819.3,0.704]
[1717278180947,0.02,3819.6,3819.4,0.07627296]
[1717278181348,0.02,3819.6,3819.5,0.704]
[1717278181872,0.02,3819.6,3819.5,0.78026398]
[1717278185868,0.02,3819.6,3819.5,3.11736398]
[1717278186050,0.02,3819.6,3819.5,2.72510038]
[1717278186224,0.02,3819.6,3819.5,3.42910038]
[1717278190064,0.02,3819.6,3819.5,1.09200038]
[1717278190437,0.02,3819.6,3819.5,0.38800038]
[1717278190669,0.02,3819.6,3819.5,1.09200038]
[1717278192963,0.02,3819.6,3819.5,3.50300038]
[1717278196029,2.66717,3821.0,3819.9,2.61783]
[1717278196348,0.05,3821.0,3820.0,0.07329913]
[1717278196667,0.05,3821.0,3820.9,0.704]
[1717278196668,2.66711,3821.0,3820.9,0.704]
[1717278196838,2.66711,3821.0,3819.8,2.61787]
[1717278196839,2.61731,3820.8,3819.8,2.61787]
[1717278197171,2.61731,3820.8,3820.7,0.704]
[1717278197541,2.61731,3820.8,3820.7,0.77723634]
[1717278197728,2.61731,3820.8,3820.7,0.704]
[1717278198566,2.61731,3820.8,3820.0,2.411]
[1717278198771,2.61731,3820.8,3820.7,0.77707132]
[1717278198946,2.61731,3820.8,3820.7,0.704]
[1717278199259,2.61731,3820.8,3820.7,0.77707132]
[1717278202068,2.62253497,3820.8,3820.7,0.77707132]
[1717278208457,2.62253497,3820.8,3820.7,0.07307132]
[1717278208667,2.62253497,3820.8,3820.7,0.77707132]
[1717278208843,2.62253497,3820.8,3820.7,0.704]
[1717278209044,2.62253497,3820.8,3820.7,0.77647052]
[1717278210085,2.88346468,3820.8,3820.7,0.77647052]
[1717278219705,2.62253497,3820.8,3820.7,0.77647052]
[1717278224369,2.62253497,3820.8,3820.7,0.07247052]
[1717278224606,2.62253497,3820.8,3820.7,0.77647052]
[1717278224899,2.62253497,3820.8,3820.7,0.704]
[1717278225195,2.62253497,3820.8,3820.7,0.77574906]
[1717278227704,2.62253497,3820.8,3820.0,2.411]
[1717278228004,2.62253497,3820.8,3820.1,0.5566787]
[1717278228205,2.62253497,3820.8,3820.7,0.704]
[1717278228584,2.62253497,3820.8,3820.7,0.77077585]
[1717278235713,2.62253497,3820.8,3820.7,0.06677585]
[1717278235906,2.62253497,3820.8,3820.7,0.77077585]
[1717278236105,2.62253497,3820.8,3820.7,0.704]
[1717278236311,2.62253497,3820.8,3820.7,0.77077585]
[1717278240929,2.62253497,3820.8,3820.7,0.06677585]
[1717278241267,2.62253497,3820.8,3820.7,0.704]
[1717278241526,2.62253497,3820.8,3820.7,0.06676345]
[1717278241898,2.62253497,3820.8,3820.7,0.704]
[1717278242239,2.62253497,3820.8,3820.7,0.77076345]
[1717278250017,2.62253497,3820.8,3820.7,0.06676345]
[1717278250209,2.62253497,3820.8,3820.7,0.06447904]
[1717278250456,0.00522497,3820.8,3820.7,0.06447904]
[1717278250746,0.00522497,3820.8,3820.7,0.704]
[1717278250950,0.00522497,3820.8,3820.7,0.76844491]
[1717278256469,0.00522497,3820.8,3820.7,1.0749794]
[1717278261675,0.00522497,3820.8,3820.7,0.3709794]
[1717278261878,0.00522497,3820.8,3820.7,1.0749794]
[1717278263034,0.00522497,3820.8,3820.7,0.76844491]
[1717278265966,0.00522497,3820.8,3820.7,0.06444491]
[1717278266180,0.00522497,3820.8,3820.7,0.704]
[1717278266351,0.00522497,3820.8,3820.7,0.76728562]
[1717278268877,2.39672497,3820.8,3820.7,0.06328562]
[1717278269166,2.39672497,3820.8,3820.5,0.704]
[1717278269167,0.00522497,3820.8,3820.5,0.704]
[1717278269392,0.00522497,3820.8,3820.3,2.2969]
[1717278269393,0.00522497,3820.8,3820.7,0.704]
[1717278269972,0.00522497,3820.8,3820.7,0.76728562]
[1717278276302,0.00522497,3820.8,3820.7,0.06328562]
[1717278276457,0.00522497,3820.8,3820.7,0.76728562]
[1717278276790,0.00522497,3820.8,3820.7,0.76727632]
[1717278281299,0.00522497,3820.8,3820.7,0.06327632]
[1717278281659,0.00522497,3820.8,3820.6,0.704]
[1717278281989,0.00522497,3820.8,3820.7,0.06327632]
[1717278285593,0.00522497,3820.8,3820.5,0.704]
[1717278285766,0.00522497,3820.8,3820.6,0.06099866]
[1717278286982,0.00522497,3820.8,3820.7,0.704]
[1717278287279,0.00522497,3820.8,3820.7,0.76498969]
[1717278295534,0.00522497,3820.8,3820.7,1.10323566]
[1717278295746,0.00522497,3820.8,3820.7,4.27055566]
[1717278295925,0.00522497,3820.8,3820.7,6.73345566]
[1717278298235,0.00522497,3820.8,3820.7,6.02945566]
[1717278298400,0.00522497,3820.8,3820.7,6.73345566]
[1717278299335,0.00522497,3820.8,3820.7,6.83818866]
[1717278302832,0.00522497,3820.8,3820.7,12.21950866]
[1717278303151,0.00522497,3820.8,3820.7,19.21950866]
[1717278303608,0.05,3821.0,3820.7,16.75660866]
[1717278303970,0.05,3821.0,3820.9,8.13268]
[1717278304101,0.05,3821.0,3820.9,11.68268]
[1717278304303,0.0835747,3821.4,3821.3,2.61691]
[1717278304506,0.0835747,3821.4,3821.3,5.21441]
[1717278304745,0.0835747,3821.4,3821.3,9.77654996]
[1717278305107,0.76990617,3822.5,3821.7,2.61656]
[1717278305440,0.76990617,3822.5,3822.4,0.704]
[1717278305643,0.76990617,3822.5,3822.4,1.254]
[1717278305847,0.76990617,3822.5,3822.4,1.31160226]
[1717278306150,0.76990617,3822.5,3822.4,1.44276249]
[1717278306311,0.76990617,3822.5,3822.4,1.31160226]
[1717278307057,0.76990617,3822.5,3822.4,0.60760226]
[1717278307258,0.76990617,3822.5,3822.4,1.31160226]
[1717278307605,0.76990617,3822.5,3822.4,0.60760226]
[1717278307839,0.76990617,3822.5,3822.4,1.31160226]
[1717278308021,0.76990617,3822.5,3822.4,1.70439649]
[1717278308649,0.76990617,3822.5,3822.4,1.68439649]
[1717278309442,0.76990617,3822.5,3822.4,1.29160226]
[1717278310144,0.76990617,3822.5,3822.4,0.58760226]
[1717278310535,0.76990617,3822.5,3822.4,1.234]
[1717278318735,0.76990617,3822.5,3822.4,1.28880482]
[1717278320666,0.77070617,3822.5,3822.4,1.28880482]
[1717278329178,0.77070617,3822.5,3822.4,0.75880482]
[1717278329973,0.77070617,3822.5,3822.4,0.60480482]
[1717278330179,0.77070617,3822.5,3822.4,1.30880482]
[1717278330749,0.77070617,3822.5,3822.4,0.75880482]
[1717278331413,0.77070617,3822.5,3822.4,0.05480482]
[1717278331550,0.77070617,3822.5,3822.4,0.75880482]
[1717278331749,0.77070617,3822.5,3822.4,0.704]
[1717278331972,0.77070617,3822.5,3822.4,0.78526618]
[1717278334184,0.77070617,3822.5,3822.4,0.08126618]
[1717278334343,3.64835779,3822.5,3822.4,0.08126618]
[1717278334543,3.64835779,3822.5,3822.2,0.704]
[1717278334749,3.64835779,3822.5,3822.4,0.08125382]
[1717278335046,3.64835779,3822.5,3822.3,0.704]
[1717278335688,2.61615,3822.4,3822.3,0.704]
[1717278336150,2.7281436,3822.4,3822.3,0.704]
[1717278337559,2.7281436,3822.4,3822.3,0.78526348]
[1717278338082,2.61615,3822.4,3822.3,0.78526348]
[1717278338283,0.1227008,3822.4,3822.3,0.78526348]
[1717278340166,0.7030065,3822.4,3822.3,0.08126348]
[1717278340368,0.1227008,3822.4,3822.0,0.704]
[1717278340755,0.1227008,3822.4,3822.1,0.07856591]
[1717278341505,2.2937,3822.2,3822.1,0.07856591]
[1717278341654,2.61639,3822.1,3821.7,0.704]
[1717278341855,3.41966908,3822.1,3821.7,0.704]
[1717278342075,3.54236988,3822.1,3821.8,0.07859491]
[1717278342352,3.54236988,3822.1,3821.7,0.704]
[1717278342552,3.54236988,3822.1,3821.9,0.07858524]
[1717278342799,0.58360699,3822.0,3821.7,0.704]
[1717278343297,0.70630779,3822.0,3821.8,0.07859491]
[1717278343494,0.70630779,3822.0,3821.7,0.704]
[1717278343704,0.70630779,3822.0,3821.9,0.07858524]
[1717278343859,2.6166,3821.8,3820.7,5.00095]
[1717278344193,2.7393008,3821.8,3821.5,0.704]
[1717278344494,2.7393008,3821.8,3821.7,0.704]
[1717278344895,3.32292879,3821.8,3821.7,0.07860458]
[1717278345192,5.61662879,3821.8,3821.7,0.07860458]
[1717278345687,5.61662879,3821.8,3820.7,2.61732]
[1717278345909,5.61662879,3821.8,3821.7,0.07883591]
[1717278346068,5.61662879,3821.8,3821.4,0.704]
[1717278346475,0.56166288,3821.7,3821.4,0.704]
[1717278346873,2.6167,3821.6,3820.7,2.61732]
[1717278347195,2.61707,3821.1,3820.6,0.704]
[1717278347393,2.61707,3821.1,3820.8,0.78060676]
[1717278347567,2.61707,3821.1,3820.8,0.704]
[1717278347767,2.61707,3821.1,3820.9,0.07660325]
[1717278347972,2.61707,3821.1,3820.8,0.704]
[1717278348184,2.61707,3821.1,3821.0,0.07659358]
[1717278348790,2.61707,3821.1,3820.8,0.704]
[1717278349089,2.61707,3821.1,3820.9,0.07660325]
[1717278349407,2.61707,3821.1,3820.8,0.704]
[1717278349577,2.61707,3821.1,3821.0,0.07659358]
[1717278349789,2.61707,3821.1,3820.9,0.07660325]
[1717278349991,2.61707,3821.1,3821.0,0.07659358]
[1717278350291,2.61707,3821.1,3820.8,0.704]
[1717278350494,2.61707,3821.1,3821.0,0.07659358]
[1717278350800,3.12041708,3821.1,3820.3,2.61753]
[1717278351109,3.12041708,3821.1,3820.7,0.704]
[1717278351322,2.61707,3821.1,3820.7,0.704]
[1717278355659,2.61707,3821.1,3820.9,0.704]
[1717278359582,2.61707,3821.1,3820.2,2.61765]
[1717278359583,2.61707,3821.1,3820.8,0.704]
[1717278359809,2.4218,3820.3,3818.4,0.54986392]
[1717278360110,2.4218,3820.3,3819.6,0.704]
[1717278360111,2.61786,3820.0,3819.6,0.704]
[1717278360285,2.6540389,3820.0,3819.6,0.704]